[Event "Early-Titled-Tuesday-Blitz-October-03-2023"]
[Site "Chess.com"]
[Date "2023.10.03"]
[Round "10"]
[White "maurovargas01"]
[Black "Doudou2015"]
[Result "0-1"]
[WhiteElo "1890"]
[BlackElo "2165"]
[TimeControl "180+1"]
[EndTime "9:57:10 PDT"]
[Termination "Doudou2015 won on time"]

1. e4 {[%clk 0:03:00.7]} 1... c5 {[%clk 0:02:58.4]} 2. Nc3 {[%clk 0:03:00.4]}
2... Nc6 {[%clk 0:02:58.7]} 3. f4 {[%clk 0:03:00.8]} 3... e6 {[%clk 0:02:59.5]}
4. Nf3 {[%clk 0:03:01.5]} 4... Nge7 {[%clk 0:02:59.8]} 5. g4 {[%clk 0:02:58.2]}
5... d5 {[%clk 0:02:59.9]} 6. e5 {[%clk 0:02:58.1]} 6... d4 {[%clk 0:03:00]} 7.
Ne4 {[%clk 0:02:56.3]} 7... Nd5 {[%clk 0:02:59.8]} 8. d3 {[%clk 0:02:53.3]} 8...
b6 {[%clk 0:02:57.2]} 9. Bg2 {[%clk 0:02:52.3]} 9... Be7 {[%clk 0:02:56.5]} 10.
O-O {[%clk 0:02:50.9]} 10... h5 {[%clk 0:02:52.6]} 11. g5 {[%clk 0:02:49.2]}
11... h4 {[%clk 0:02:51.5]} 12. h3 {[%clk 0:02:44.9]} 12... Bb7 {[%clk
0:02:40.9]} 13. Qe1 {[%clk 0:02:33.7]} 13... Qc7 {[%clk 0:02:30.1]} 14. Bd2
{[%clk 0:02:29]} 14... O-O-O {[%clk 0:02:25.8]} 15. a3 {[%clk 0:02:03.2]} 15...
f6 {[%clk 0:01:32]} 16. gxf6 {[%clk 0:01:57]} 16... gxf6 {[%clk 0:01:32.9]} 17.
Kh1 {[%clk 0:01:40.6]} 17... fxe5 {[%clk 0:01:29.6]} 18. fxe5 {[%clk 0:01:40]}
18... Nxe5 {[%clk 0:01:27]} 19. Neg5 {[%clk 0:01:29.8]} 19... Nxf3 {[%clk
0:01:18.4]} 20. Qxe6+ {[%clk 0:01:08.1]} 20... Kb8 {[%clk 0:01:17.5]} 21. Bxf3
{[%clk 0:00:56.7]} 21... Bxg5 {[%clk 0:01:01.9]} 22. Bxg5 {[%clk 0:00:49.9]}
22... Rde8 {[%clk 0:00:53.9]} 23. Qg4 {[%clk 0:00:41.9]} 23... Ne3 {[%clk
0:00:40.1]} 24. Bf4 {[%clk 0:00:30]} 24... Nxg4 {[%clk 0:00:34.4]} 25. Bxc7+
{[%clk 0:00:29.6]} 25... Kxc7 {[%clk 0:00:32.5]} 26. hxg4 {[%clk 0:00:27]} 26...
Re3 {[%clk 0:00:20.9]} 27. Bxb7 {[%clk 0:00:26.6]} 27... Kxb7 {[%clk 0:00:21.8]}
28. Rf7+ {[%clk 0:00:23.8]} 28... Kc6 {[%clk 0:00:21.8]} 29. Raf1 {[%clk
0:00:21.5]} 29... Rg3 {[%clk 0:00:08.6]} 30. a4 {[%clk 0:00:20.6]} 30... b5
{[%clk 0:00:06.7]} 31. R1f6+ {[%clk 0:00:19.8]} 31... Kd5 {[%clk 0:00:06.7]} 32.
Rf5+ {[%clk 0:00:17.1]} 32... Kc6 {[%clk 0:00:04.6]} 33. R7f6+ {[%clk
0:00:16.6]} 33... Kb7 {[%clk 0:00:04.8]} 34. axb5 {[%clk 0:00:11.9]} 34... Rxg4
{[%clk 0:00:03.8]} 35. Rc6 {[%clk 0:00:08.7]} 35... Re8 {[%clk 0:00:03.7]} 36.
Rf7+ {[%clk 0:00:08.4]} 36... Kb8 {[%clk 0:00:03.3]} 37. Rf1 {[%clk 0:00:02.7]}
37... Re2 {[%clk 0:00:03.1]} 38. Rxc5 {[%clk 0:00:02.1]} 38... Rgg2 {[%clk
0:00:03.1]} 0-1

[Event "Early-Titled-Tuesday-Blitz-October-03-2023"]
[Site "Chess.com"]
[Date "2023.10.03"]
[Round "10"]
[White "deribas12345"]
[Black "LangesNasenhaar"]
[Result "1-0"]
[WhiteElo "2592"]
[BlackElo "2454"]
[TimeControl "180+1"]
[EndTime "9:57:11 PDT"]
[Termination "deribas12345 won on time"]

1. d4 {[%clk 0:02:44.7]} 1... g6 {[%clk 0:02:59.7]} 2. c4 {[%clk 0:02:44.2]}
2... Bg7 {[%clk 0:03:00.2]} 3. e4 {[%clk 0:02:44.5]} 3... d6 {[%clk 0:02:59.3]}
4. Nc3 {[%clk 0:02:44.6]} 4... e5 {[%clk 0:02:59.7]} 5. d5 {[%clk 0:02:43.1]}
5... f5 {[%clk 0:02:58.6]} 6. exf5 {[%clk 0:02:41.6]} 6... gxf5 {[%clk
0:02:59.5]} 7. Nf3 {[%clk 0:02:39.4]} 7... Nf6 {[%clk 0:02:58.3]} 8. Ng5 {[%clk
0:02:38.4]} 8... h6 {[%clk 0:02:48.5]} 9. Ne6 {[%clk 0:02:35.7]} 9... Bxe6
{[%clk 0:02:48.6]} 10. dxe6 {[%clk 0:02:36.6]} 10... c6 {[%clk 0:02:49.3]} 11.
Bd3 {[%clk 0:02:28.8]} 11... e4 {[%clk 0:02:47.7]} 12. Be2 {[%clk 0:02:29]}
12... O-O {[%clk 0:02:42.1]} 13. O-O {[%clk 0:02:28.5]} 13... Qe7 {[%clk
0:02:42]} 14. Bf4 {[%clk 0:02:26.3]} 14... Rd8 {[%clk 0:02:36.4]} 15. f3 {[%clk
0:02:26.1]} 15... Qxe6 {[%clk 0:02:30.6]} 16. fxe4 {[%clk 0:02:25.8]} 16... fxe4
{[%clk 0:02:30.9]} 17. Qc1 {[%clk 0:02:20.2]} 17... Kh7 {[%clk 0:02:28.7]} 18.
Qc2 {[%clk 0:02:04.6]} 18... d5 {[%clk 0:02:23.2]} 19. Rae1 {[%clk 0:02:03.7]}
19... Na6 {[%clk 0:02:14.6]} 20. Bg3 {[%clk 0:01:41.7]} 20... Kh8 {[%clk
0:01:57.1]} 21. Bh4 {[%clk 0:01:35.8]} 21... Nc5 {[%clk 0:01:38.5]} 22. cxd5
{[%clk 0:01:32.9]} 22... cxd5 {[%clk 0:01:34.3]} 23. Kh1 {[%clk 0:01:25.9]}
23... d4 {[%clk 0:01:23.1]} 24. Bxf6 {[%clk 0:01:14]} 24... Bxf6 {[%clk
0:01:22.4]} 25. Nb5 {[%clk 0:01:13.6]} 25... b6 {[%clk 0:00:47.8]} 26. Nc7
{[%clk 0:01:10.9]} 26... Qd7 {[%clk 0:00:27.2]} 27. Nxa8 {[%clk 0:01:10.1]}
27... d3 {[%clk 0:00:25.9]} 28. Qd2 {[%clk 0:01:01.6]} 28... Bg5 {[%clk
0:00:22.8]} 29. Qc3+ {[%clk 0:01:01.3]} 29... Qd4 {[%clk 0:00:23.4]} 30. Rf8+
{[%clk 0:00:34.3]} 30... Kh7 {[%clk 0:00:16.5]} 31. Rxd8 {[%clk 0:00:34.2]}
31... Qxd8 {[%clk 0:00:15.1]} 32. Bxd3 {[%clk 0:00:30.8]} 32... Nxd3 {[%clk
0:00:12.1]} 33. Rf1 {[%clk 0:00:30.6]} 33... Qxa8 {[%clk 0:00:05.4]} 34. Rf7+
{[%clk 0:00:21.9]} 34... Kg6 {[%clk 0:00:05.7]} 35. Qg7+ {[%clk 0:00:18.7]}
35... Kh5 {[%clk 0:00:06]} 36. h3 {[%clk 0:00:11.2]} 36... e3 {[%clk 0:00:05.4]}
37. Rf5 {[%clk 0:00:10.9]} 37... Nf2+ {[%clk 0:00:03.7]} 38. Kg1 {[%clk
0:00:10.7]} 38... Qe4 {[%clk 0:00:01.5]} 39. Qh7 {[%clk 0:00:04.4]} 39... Kh4
{[%clk 0:00:01.3]} 40. g3+ {[%clk 0:00:02.3]} 1-0

[Event "Early-Titled-Tuesday-Blitz-October-03-2023"]
[Site "Chess.com"]
[Date "2023.10.03"]
[Round "10"]
[White "Grischuk"]
[Black "AlmasRakhmatullaev"]
[Result "1-0"]
[WhiteElo "3004"]
[BlackElo "2819"]
[TimeControl "180+1"]
[EndTime "9:57:12 PDT"]
[Termination "Grischuk won by resignation"]

1. d4 {[%clk 0:03:00.9]} 1... d5 {[%clk 0:02:59.9]} 2. Nf3 {[%clk 0:03:01.2]}
2... e6 {[%clk 0:03:00.1]} 3. g3 {[%clk 0:02:58.1]} 3... a6 {[%clk 0:03:00.1]}
4. Bg2 {[%clk 0:02:56.5]} 4... Nc6 {[%clk 0:02:59.9]} 5. O-O {[%clk 0:02:56.1]}
5... Nf6 {[%clk 0:02:55.4]} 6. c4 {[%clk 0:02:38.4]} 6... dxc4 {[%clk
0:02:54.3]} 7. e3 {[%clk 0:02:37.2]} 7... Rb8 {[%clk 0:02:53.4]} 8. a4 {[%clk
0:02:35.2]} 8... b5 {[%clk 0:02:51.5]} 9. axb5 {[%clk 0:02:32.1]} 9... axb5
{[%clk 0:02:52.4]} 10. b3 {[%clk 0:02:32.8]} 10... cxb3 {[%clk 0:02:32.6]} 11.
Nfd2 {[%clk 0:02:31.2]} 11... Nb4 {[%clk 0:02:21.5]} 12. Nxb3 {[%clk 0:02:30.4]}
12... Bb7 {[%clk 0:02:19.6]} 13. Bxb7 {[%clk 0:02:29.5]} 13... Rxb7 {[%clk
0:02:20.5]} 14. Ba3 {[%clk 0:02:25.9]} 14... Be7 {[%clk 0:02:10.7]} 15. Nc3
{[%clk 0:02:24]} 15... O-O {[%clk 0:02:07.1]} 16. Qf3 {[%clk 0:02:16.2]} 16...
Rb6 {[%clk 0:02:03.9]} 17. Rfb1 {[%clk 0:02:12.4]} 17... Nc2 {[%clk 0:01:58.6]}
18. Bxe7 {[%clk 0:02:11.4]} 18... Qxe7 {[%clk 0:01:59.5]} 19. Ra7 {[%clk
0:02:08.2]} 19... Na3 {[%clk 0:01:49.7]} 20. Rc1 {[%clk 0:02:04.4]} 20... Nc4
{[%clk 0:01:38.6]} 21. Nc5 {[%clk 0:02:03]} 21... h6 {[%clk 0:01:28.8]} 22. Nxb5
{[%clk 0:01:55.4]} 22... Rxb5 {[%clk 0:01:09.4]} 23. Rxc4 {[%clk 0:01:55.5]}
23... Rb1+ {[%clk 0:01:10]} 24. Kg2 {[%clk 0:01:55.6]} 24... Nd5 {[%clk
0:01:00.2]} 25. Nd3 {[%clk 0:01:47.6]} 25... Qg5 {[%clk 0:00:53.9]} 26. h4
{[%clk 0:01:39.7]} 26... Qg6 {[%clk 0:00:20.9]} 27. Ne5 {[%clk 0:01:38]} 27...
Qh7 {[%clk 0:00:21.2]} 28. Ra8 {[%clk 0:01:18.5]} 28... g5 {[%clk 0:00:21.5]}
29. Rxf8+ {[%clk 0:01:14.2]} 29... Kxf8 {[%clk 0:00:22.4]} 30. e4 {[%clk
0:01:12.4]} 30... Ne7 {[%clk 0:00:03.4]} 31. Rxc7 {[%clk 0:00:55]} 31... Re1
{[%clk 0:00:03.9]} 32. Nd7+ {[%clk 0:00:51.9]} 32... Kg7 {[%clk 0:00:04.5]} 33.
Nf6 {[%clk 0:00:52.3]} 33... Qg6 {[%clk 0:00:02.4]} 34. e5 {[%clk 0:00:23.3]}
34... Nd5 {[%clk 0:00:02.7]} 35. h5 {[%clk 0:00:17.7]} 35... g4 {[%clk
0:00:03.2]} 36. Qxd5 {[%clk 0:00:08]} 36... Qf5 {[%clk 0:00:02.5]} 37. Qb7
{[%clk 0:00:05]} 37... Qf3+ {[%clk 0:00:01.6]} 38. Qxf3 {[%clk 0:00:04.6]} 38...
gxf3+ {[%clk 0:00:02.5]} 39. Kxf3 {[%clk 0:00:05.5]} 39... Rd1 {[%clk
0:00:03.4]} 40. Rd7 {[%clk 0:00:04.1]} 40... Rd3+ {[%clk 0:00:03.2]} 41. Ke2
{[%clk 0:00:04.5]} 41... Rb3 {[%clk 0:00:04.1]} 42. Ne4 {[%clk 0:00:04.9]} 42...
Rb2+ {[%clk 0:00:04.6]} 43. Kf3 {[%clk 0:00:05.2]} 43... Rb7 {[%clk 0:00:05.1]}
44. Rxb7 {[%clk 0:00:04.9]} 1-0

[Event "Early-Titled-Tuesday-Blitz-October-03-2023"]
[Site "Chess.com"]
[Date "2023.10.03"]
[Round "10"]
[White "FMVolodymyrSakun"]
[Black "tylityli"]
[Result "1-0"]
[WhiteElo "2619"]
[BlackElo "2347"]
[TimeControl "180+1"]
[EndTime "9:57:13 PDT"]
[Termination "FMVolodymyrSakun won on time"]

1. e4 {[%clk 0:03:00.9]} 1... e5 {[%clk 0:02:59.4]} 2. d4 {[%clk 0:03:00.3]}
2... exd4 {[%clk 0:02:59.2]} 3. Nf3 {[%clk 0:03:00.5]} 3... Nc6 {[%clk
0:02:59.1]} 4. Bc4 {[%clk 0:03:00.6]} 4... Nf6 {[%clk 0:02:58.9]} 5. e5 {[%clk
0:03:00.2]} 5... d5 {[%clk 0:02:58.8]} 6. Bb5 {[%clk 0:03:00.6]} 6... Ne4 {[%clk
0:02:58.5]} 7. Nxd4 {[%clk 0:03:01]} 7... Bd7 {[%clk 0:02:58.6]} 8. Bxc6 {[%clk
0:03:00.8]} 8... bxc6 {[%clk 0:02:59.5]} 9. O-O {[%clk 0:03:01.3]} 9... Bc5
{[%clk 0:02:59.1]} 10. f3 {[%clk 0:03:01.4]} 10... Ng5 {[%clk 0:02:58.8]} 11.
Be3 {[%clk 0:03:01.7]} 11... Bb6 {[%clk 0:02:58]} 12. f4 {[%clk 0:03:01.8]}
12... Ne4 {[%clk 0:02:57.8]} 13. Nd2 {[%clk 0:03:01.8]} 13... Nxd2 {[%clk
0:02:57.2]} 14. Qxd2 {[%clk 0:03:02]} 14... c5 {[%clk 0:02:55.1]} 15. Nf3 {[%clk
0:03:00.1]} 15... d4 {[%clk 0:02:55.1]} 16. Bf2 {[%clk 0:03:00]} 16... O-O
{[%clk 0:02:52.6]} 17. Bh4 {[%clk 0:02:58.7]} 17... Qe8 {[%clk 0:02:48.8]} 18.
Kh1 {[%clk 0:02:37.6]} 18... h6 {[%clk 0:02:42.9]} 19. Rae1 {[%clk 0:02:31.6]}
19... Bf5 {[%clk 0:02:37.2]} 20. h3 {[%clk 0:02:30.3]} 20... Qc6 {[%clk
0:02:25.3]} 21. Kh2 {[%clk 0:02:24.9]} 21... Be4 {[%clk 0:02:09.7]} 22. Qe2
{[%clk 0:02:16.3]} 22... Bd5 {[%clk 0:01:50.1]} 23. f5 {[%clk 0:02:11.8]} 23...
c4 {[%clk 0:01:46.1]} 24. f6 {[%clk 0:02:10.5]} 24... g6 {[%clk 0:01:45.8]} 25.
Bg3 {[%clk 0:01:46.4]} 25... Kh7 {[%clk 0:01:35.2]} 26. Bf4 {[%clk 0:01:46.2]}
26... Rh8 {[%clk 0:01:30]} 27. Qd2 {[%clk 0:01:37.7]} 27... Bxf3 {[%clk
0:01:12.9]} 28. Rxf3 {[%clk 0:01:35.9]} 28... Kg8 {[%clk 0:00:33.3]} 29. e6
{[%clk 0:01:24.7]} 29... Re8 {[%clk 0:00:24.1]} 30. exf7+ {[%clk 0:00:44.3]}
30... Kxf7 {[%clk 0:00:22.5]} 31. Bxh6 {[%clk 0:00:39.1]} 31... Rxe1 {[%clk
0:00:19.4]} 32. Qxe1 {[%clk 0:00:38.9]} 32... Re8 {[%clk 0:00:18.8]} 33. Qh4
{[%clk 0:00:35.1]} 33... Rh8 {[%clk 0:00:07.3]} 34. Qg5 {[%clk 0:00:24.2]} 34...
Qc5 {[%clk 0:00:05]} 35. Qxc5 {[%clk 0:00:16.9]} 35... Bxc5 {[%clk 0:00:04.8]}
36. Bg7 {[%clk 0:00:17.4]} 36... Rd8 {[%clk 0:00:02.4]} 37. Rf1 {[%clk
0:00:13.6]} 37... d3 {[%clk 0:00:02.7]} 38. cxd3 {[%clk 0:00:12.6]} 38... cxd3
{[%clk 0:00:03.6]} 39. Rd1 {[%clk 0:00:12.4]} 39... d2 {[%clk 0:00:03.6]} 40.
Kg3 {[%clk 0:00:12.9]} 40... Bd6+ {[%clk 0:00:02.5]} 41. Kf3 {[%clk 0:00:13]}
41... Be5 {[%clk 0:00:02.9]} 42. Ke2 {[%clk 0:00:13]} 42... Bxb2 {[%clk
0:00:02.2]} 43. Rxd2 {[%clk 0:00:12.1]} 43... Rxd2+ {[%clk 0:00:01.8]} 44. Kxd2
{[%clk 0:00:13]} 1-0

[Event "Early-Titled-Tuesday-Blitz-October-03-2023"]
[Site "Chess.com"]
[Date "2023.10.03"]
[Round "10"]
[White "remi04"]
[Black "Rutricks"]
[Result "1/2-1/2"]
[WhiteElo "2852"]
[BlackElo "2695"]
[TimeControl "180+1"]
[EndTime "9:57:17 PDT"]
[Termination "Game drawn by repetition"]

1. e4 {[%clk 0:03:00.9]} 1... g6 {[%clk 0:03:00.9]} 2. d4 {[%clk 0:03:00.3]}
2... Bg7 {[%clk 0:03:01.8]} 3. Nc3 {[%clk 0:03:00.7]} 3... c6 {[%clk 0:03:02.7]}
4. Nf3 {[%clk 0:02:58.6]} 4... d5 {[%clk 0:03:03.2]} 5. h3 {[%clk 0:02:58.9]}
5... dxe4 {[%clk 0:03:04.1]} 6. Nxe4 {[%clk 0:02:59.4]} 6... Nf6 {[%clk
0:03:05]} 7. Bd3 {[%clk 0:02:59.7]} 7... Nxe4 {[%clk 0:03:04.9]} 8. Bxe4 {[%clk
0:03:00.6]} 8... Nd7 {[%clk 0:03:05.6]} 9. O-O {[%clk 0:03:00.9]} 9... O-O
{[%clk 0:03:06.1]} 10. c3 {[%clk 0:03:00.6]} 10... e5 {[%clk 0:03:06.7]} 11. Be3
{[%clk 0:02:52.9]} 11... exd4 {[%clk 0:03:01.4]} 12. Nxd4 {[%clk 0:02:52.3]}
12... Re8 {[%clk 0:02:59.2]} 13. Bc2 {[%clk 0:02:51]} 13... Nf6 {[%clk
0:02:59.6]} 14. Bb3 {[%clk 0:02:48.8]} 14... Qc7 {[%clk 0:02:57.2]} 15. Qf3
{[%clk 0:02:46]} 15... a6 {[%clk 0:02:54.7]} 16. Bf4 {[%clk 0:02:43.6]} 16...
Qb6 {[%clk 0:02:54.6]} 17. Rae1 {[%clk 0:02:31.6]} 17... Bd7 {[%clk 0:02:50.6]}
18. Nc2 {[%clk 0:01:53.3]} 18... a5 {[%clk 0:02:42.8]} 19. Be3 {[%clk
0:01:49.6]} 19... Qc7 {[%clk 0:02:39.4]} 20. Bd4 {[%clk 0:01:46.2]} 20... Bf5
{[%clk 0:01:59.7]} 21. Bxf6 {[%clk 0:01:37.2]} 21... Bxf6 {[%clk 0:02:00.6]} 22.
Ne3 {[%clk 0:01:36.9]} 22... a4 {[%clk 0:00:48.1]} 23. Bd1 {[%clk 0:01:24.3]}
23... Qe5 {[%clk 0:00:44.4]} 24. Nxf5 {[%clk 0:00:43.6]} 24... Qxf5 {[%clk
0:00:24.1]} 25. Qxf5 {[%clk 0:00:43.5]} 25... gxf5 {[%clk 0:00:25]} 26. Rxe8+
{[%clk 0:00:43.6]} 26... Rxe8 {[%clk 0:00:24.8]} 27. Bxa4 {[%clk 0:00:44.3]}
27... Re2 {[%clk 0:00:25.1]} 28. Rd1 {[%clk 0:00:32.1]} 28... Rxb2 {[%clk
0:00:24]} 29. Bb3 {[%clk 0:00:32.4]} 29... Bxc3 {[%clk 0:00:06.5]} 30. Rd8+
{[%clk 0:00:27.8]} 30... Kg7 {[%clk 0:00:05.3]} 31. Rd7 {[%clk 0:00:28.7]} 31...
b5 {[%clk 0:00:05.2]} 32. Rxf7+ {[%clk 0:00:28.4]} 32... Kg6 {[%clk 0:00:05.2]}
33. Rb7 {[%clk 0:00:19.3]} 33... Bd4 {[%clk 0:00:04.1]} 34. Kh1 {[%clk
0:00:13.3]} 34... Bxf2 {[%clk 0:00:01.3]} 35. g4 {[%clk 0:00:10.7]} 35... Bg3
{[%clk 0:00:01.8]} 36. gxf5+ {[%clk 0:00:08.3]} 36... Kxf5 {[%clk 0:00:02.7]}
37. Rxh7 {[%clk 0:00:08.2]} 37... Kf4 {[%clk 0:00:03.1]} 38. Rf7+ {[%clk
0:00:07.8]} 38... Ke3 {[%clk 0:00:03.5]} 39. Rg7 {[%clk 0:00:07]} 39... Kf3
{[%clk 0:00:03.6]} 40. Rf7+ {[%clk 0:00:07.5]} 40... Bf4 {[%clk 0:00:03.7]} 41.
Bd1+ {[%clk 0:00:07.7]} 41... Kg3 {[%clk 0:00:03.9]} 42. Rg7+ {[%clk 0:00:05.2]}
42... Kxh3 {[%clk 0:00:04]} 43. Rh7+ {[%clk 0:00:04.8]} 43... Kg3 {[%clk
0:00:04.4]} 44. Rg7+ {[%clk 0:00:05.6]} 44... Kh3 {[%clk 0:00:03.1]} 45. Rh7+
{[%clk 0:00:06]} 45... Kg3 {[%clk 0:00:03.6]} 46. Rg7+ {[%clk 0:00:06.6]} 46...
Kh3 {[%clk 0:00:02.6]} 1/2-1/2

[Event "Early-Titled-Tuesday-Blitz-October-03-2023"]
[Site "Chess.com"]
[Date "2023.10.03"]
[Round "10"]
[White "MightyGMpretender"]
[Black "GradualismUnleashed"]
[Result "1-0"]
[WhiteElo "2818"]
[BlackElo "2632"]
[TimeControl "180+1"]
[EndTime "9:57:17 PDT"]
[Termination "MightyGMpretender won by resignation"]

1. e4 {[%clk 0:02:58.5]} 1... c5 {[%clk 0:02:59.1]} 2. Nf3 {[%clk 0:02:57.3]}
2... e6 {[%clk 0:02:59.7]} 3. d4 {[%clk 0:02:58.2]} 3... cxd4 {[%clk 0:03:00.4]}
4. Nxd4 {[%clk 0:02:58.5]} 4... Nc6 {[%clk 0:03:01]} 5. Nc3 {[%clk 0:02:59]}
5... Qc7 {[%clk 0:03:01.6]} 6. a3 {[%clk 0:02:58.7]} 6... a6 {[%clk 0:03:01.4]}
7. Qd3 {[%clk 0:02:56]} 7... Nf6 {[%clk 0:02:59.8]} 8. Nxc6 {[%clk 0:02:54.4]}
8... bxc6 {[%clk 0:02:58.8]} 9. Qg3 {[%clk 0:02:55]} 9... Qxg3 {[%clk
0:02:56.6]} 10. hxg3 {[%clk 0:02:55.9]} 10... d5 {[%clk 0:02:56]} 11. Bd3 {[%clk
0:02:56.5]} 11... Be7 {[%clk 0:02:53.4]} 12. Bd2 {[%clk 0:02:50.6]} 12... h6
{[%clk 0:02:52.1]} 13. f3 {[%clk 0:02:50.8]} 13... a5 {[%clk 0:02:51]} 14. g4
{[%clk 0:02:46]} 14... O-O {[%clk 0:02:36.7]} 15. g5 {[%clk 0:02:43.8]} 15...
hxg5 {[%clk 0:02:29.6]} 16. Bxg5 {[%clk 0:02:42]} 16... d4 {[%clk 0:02:27.7]}
17. Ne2 {[%clk 0:02:25.7]} 17... e5 {[%clk 0:02:27.3]} 18. f4 {[%clk 0:02:22.7]}
18... exf4 {[%clk 0:02:19.5]} 19. e5 {[%clk 0:01:57.5]} 19... Nd5 {[%clk
0:02:13.1]} 20. Bh7+ {[%clk 0:01:57.5]} 20... Kh8 {[%clk 0:02:12.6]} 21. Bxe7
{[%clk 0:01:56.9]} 21... Nxe7 {[%clk 0:02:11.1]} 22. Nxd4 {[%clk 0:01:49.3]}
22... f6 {[%clk 0:01:33.4]} 23. e6 {[%clk 0:01:24.6]} 23... g5 {[%clk
0:01:21.1]} 24. Nxc6 {[%clk 0:01:23.4]} 24... Nxc6 {[%clk 0:01:16.6]} 25. Be4+
{[%clk 0:01:23]} 25... Kg7 {[%clk 0:01:15.4]} 26. Bxc6 {[%clk 0:01:23.5]} 26...
Ra7 {[%clk 0:01:09.5]} 27. O-O-O {[%clk 0:00:59.1]} 27... Bxe6 {[%clk
0:01:08.1]} 28. Be4 {[%clk 0:00:57.7]} 28... f5 {[%clk 0:01:02.3]} 29. Bd3
{[%clk 0:00:53.3]} 29... Rd7 {[%clk 0:01:00.3]} 30. Rde1 {[%clk 0:00:49.1]}
30... Rd6 {[%clk 0:00:48.8]} 31. Rh5 {[%clk 0:00:49]} 31... Kg6 {[%clk
0:00:45.1]} 32. Reh1 {[%clk 0:00:49.6]} 32... g4 {[%clk 0:00:40.7]} 33. Rh6+
{[%clk 0:00:41.6]} 33... Kg7 {[%clk 0:00:33.9]} 34. Rh7+ {[%clk 0:00:41.9]}
34... Kf6 {[%clk 0:00:32.8]} 35. Rf1 {[%clk 0:00:33.3]} 35... Rc8 {[%clk
0:00:28.1]} 36. Kd2 {[%clk 0:00:29.7]} 36... Ke5 {[%clk 0:00:25.5]} 37. Rh6
{[%clk 0:00:18.2]} 37... Rc5 {[%clk 0:00:18.4]} 38. Re1+ {[%clk 0:00:18.2]}
38... Kd5 {[%clk 0:00:17.8]} 39. c4+ {[%clk 0:00:16]} 39... Rxc4 {[%clk
0:00:12.6]} 40. Rexe6 {[%clk 0:00:15.8]} 40... Rcc6 {[%clk 0:00:11.3]} 41. Rxd6+
{[%clk 0:00:15.1]} 41... Rxd6 {[%clk 0:00:12.2]} 42. Rxd6+ {[%clk 0:00:13.7]}
42... Kxd6 {[%clk 0:00:13.1]} 43. Kc3 {[%clk 0:00:14]} 43... Ke5 {[%clk
0:00:12.6]} 44. Kd2 {[%clk 0:00:13.3]} 44... a4 {[%clk 0:00:11]} 45. Bc2 {[%clk
0:00:13.3]} 45... f3 {[%clk 0:00:09.9]} 46. gxf3 {[%clk 0:00:13.1]} 46... g3
{[%clk 0:00:10.6]} 47. Ke2 {[%clk 0:00:13.8]} 47... Kf4 {[%clk 0:00:10.7]} 48.
Bxa4 {[%clk 0:00:13.1]} 48... Kg5 {[%clk 0:00:10.6]} 49. Kf1 {[%clk 0:00:13.3]}
49... Kf4 {[%clk 0:00:10.3]} 50. Kg2 {[%clk 0:00:13.9]} 50... Ke3 {[%clk
0:00:09.3]} 51. Kxg3 {[%clk 0:00:14.8]} 51... f4+ {[%clk 0:00:09.3]} 52. Kg4
{[%clk 0:00:15.7]} 1-0

[Event "Early-Titled-Tuesday-Blitz-October-03-2023"]
[Site "Chess.com"]
[Date "2023.10.03"]
[Round "10"]
[White "Mr_ruthless"]
[Black "ajedrezhoy"]
[Result "1-0"]
[WhiteElo "2495"]
[BlackElo "2362"]
[TimeControl "180+1"]
[EndTime "9:57:17 PDT"]
[Termination "Mr_ruthless won by resignation"]

1. e4 {[%clk 0:03:00.9]} 1... Nf6 {[%clk 0:02:59.5]} 2. e5 {[%clk 0:03:00.3]}
2... Nd5 {[%clk 0:02:59.5]} 3. c4 {[%clk 0:03:01.2]} 3... Nb6 {[%clk 0:02:59.3]}
4. d4 {[%clk 0:03:02.1]} 4... d6 {[%clk 0:02:59.2]} 5. exd6 {[%clk 0:03:03]}
5... cxd6 {[%clk 0:02:59]} 6. b3 {[%clk 0:02:59.7]} 6... g6 {[%clk 0:02:58.4]}
7. Bb2 {[%clk 0:03:00.1]} 7... Bg7 {[%clk 0:02:58.4]} 8. Nd2 {[%clk 0:02:59.6]}
8... O-O {[%clk 0:02:57.3]} 9. Ngf3 {[%clk 0:02:59.8]} 9... Nc6 {[%clk
0:02:57.2]} 10. Be2 {[%clk 0:02:58.2]} 10... Bg4 {[%clk 0:02:52.6]} 11. O-O
{[%clk 0:02:57.6]} 11... d5 {[%clk 0:02:52.7]} 12. h3 {[%clk 0:02:55.6]} 12...
Bf5 {[%clk 0:02:43.9]} 13. Ne5 {[%clk 0:02:39.5]} 13... Nxe5 {[%clk 0:02:38.4]}
14. dxe5 {[%clk 0:02:38.9]} 14... d4 {[%clk 0:02:35.7]} 15. f4 {[%clk
0:02:20.6]} 15... d3 {[%clk 0:02:21]} 16. Bg4 {[%clk 0:02:14.5]} 16... Bxg4
{[%clk 0:02:04]} 17. hxg4 {[%clk 0:02:15.4]} 17... Qc7 {[%clk 0:01:58.5]} 18.
Qf3 {[%clk 0:02:09.1]} 18... Rad8 {[%clk 0:01:57.7]} 19. Rae1 {[%clk 0:01:59.7]}
19... Nd7 {[%clk 0:01:54.7]} 20. Kf2 {[%clk 0:01:24]} 20... g5 {[%clk
0:01:47.9]} 21. Rh1 {[%clk 0:01:14.5]} 21... gxf4 {[%clk 0:01:45.2]} 22. Qe4
{[%clk 0:01:04]} 22... h6 {[%clk 0:01:40.2]} 23. g5 {[%clk 0:00:57.8]} 23... Nc5
{[%clk 0:01:27]} 24. Qxf4 {[%clk 0:00:54.7]} 24... hxg5 {[%clk 0:01:23.4]} 25.
Qh2 {[%clk 0:00:33.4]} 25... Rfe8 {[%clk 0:01:14.9]} 26. Re3 {[%clk 0:00:17.7]}
26... g4 {[%clk 0:01:07]} 27. Qh5 {[%clk 0:00:14.4]} 27... Qa5 {[%clk
0:01:04.9]} 28. Bc1 {[%clk 0:00:12.3]} 28... Rd4 {[%clk 0:00:59.2]} 29. e6
{[%clk 0:00:10.9]} 29... Rf4+ {[%clk 0:00:38.5]} 30. Kg3 {[%clk 0:00:11.4]}
30... Qc7 {[%clk 0:00:35.2]} 31. exf7+ {[%clk 0:00:09.7]} 31... Rxf7+ {[%clk
0:00:34.5]} 32. Kxg4 {[%clk 0:00:09.2]} 32... Qf4+ {[%clk 0:00:33.5]} 33. Kh3
{[%clk 0:00:09.8]} 33... Qxe3+ {[%clk 0:00:33.3]} 34. Nf3 {[%clk 0:00:10.1]}
34... Qe6+ {[%clk 0:00:32.3]} 35. Kg3 {[%clk 0:00:09.7]} 35... Ne4+ {[%clk
0:00:31.6]} 36. Kh2 {[%clk 0:00:09.1]} 36... d2 {[%clk 0:00:27.5]} 37. Bxd2
{[%clk 0:00:08.9]} 37... Nxd2 {[%clk 0:00:27.2]} 38. Ng5 {[%clk 0:00:08.8]}
38... Qe5+ {[%clk 0:00:25.8]} 39. Kg1 {[%clk 0:00:09.4]} 39... Qd4+ {[%clk
0:00:24.2]} 40. Kh2 {[%clk 0:00:09.8]} 40... Be5+ {[%clk 0:00:22.2]} 41. Kh3
{[%clk 0:00:09.3]} 41... Qd3+ {[%clk 0:00:21.2]} 42. Kg4 {[%clk 0:00:09]} 42...
Qf5+ {[%clk 0:00:20.6]} 43. Kh4 {[%clk 0:00:07.6]} 43... Bf6 {[%clk 0:00:19.7]}
44. Qxf7+ {[%clk 0:00:06.8]} 44... Kh8 {[%clk 0:00:17.7]} 45. Kg3+ {[%clk
0:00:06.8]} 1-0